bitfinex/quotes_SOLUSD_20220128
["timestamp","ask_amount","ask_price","bid_price","bid_amount"]
[1643364121644,16.7448,89.69,89.566,23.2551]
[1643364121846,111.5,89.689,89.566,23.2551]
[1643364122052,131.0691817,89.689,89.574,31.06832846]
[1643364122246,1.52284959,89.686,89.574,31.06832846]
[1643364122443,1.52284959,89.676,89.545,1.5323618]
[1643364122644,1.52284959,89.673,89.543,57.10465903]
[1643364122843,1.52284959,89.669,89.546,31.07593611]
[1643364123044,1.52284959,89.667,89.546,31.07593611]
[1643364123243,1.52284959,89.659,89.543,31.07593611]
[1643364123643,1.52284959,89.659,89.531,31.07593611]
[1643364123846,34.84546628,89.658,89.531,31.07593611]
[1643364124246,1.52284959,89.656,89.531,31.07593611]
[1643364124446,16.7573,89.63,89.53,31.07593611]
[1643364124649,111.5,89.629,89.53,31.07593611]
[1643364124847,114.45669142,89.629,89.528,31.07593611]
[1643364125047,49.18558473,89.628,89.528,31.07593611]
[1643364125247,111.5,89.627,89.521,31.07593611]
[1643364125446,114.45669142,89.627,89.521,31.07593611]
[1643364125647,16.7588,89.62,89.521,31.07593611]
[1643364126046,2.95669142,89.619,89.522,0.25]
[1643364126447,49.18558473,89.628,89.522,0.25]
[1643364126647,49.18558473,89.628,89.524,20.46611263]
[1643364126848,49.18558473,89.628,89.525,113.2823618]
[1643364127047,49.18558473,89.628,89.526,1.5323618]
[1643364127446,49.18558473,89.628,89.527,31.32593611]
[1643364127650,49.18558473,89.628,89.53,13.41]
[1643364127847,49.18558473,89.628,89.531,0.25]
[1643364128047,49.18558473,89.628,89.532,1.5323618]
[1643364128248,49.18558473,89.628,89.536,1.5323618]
[1643364128448,49.18558473,89.628,89.543,1.082505]
[1643364128647,49.18558473,89.628,89.544,1.5323618]
[1643364128847,49.18558473,89.628,89.544,1.7823618]
[1643364129049,49.18558473,89.628,89.545,31.07593611]
[1643364129449,49.18558473,89.628,89.55,13.41]
[1643364129853,49.18558473,89.628,89.552,111.5]
[1643364130252,49.18558473,89.628,89.553,31.32593611]
[1643364130552,49.18558473,89.628,89.553,0.25]
[1643364130953,49.18558473,89.628,89.554,31.07557757]
[1643364131356,49.18558473,89.628,89.555,0.25]
[1643364132356,49.18558473,89.628,89.551,0.25]
[1643364134355,49.18558473,89.628,89.534,1.5323618]
[1643364134556,49.18558473,89.628,89.53,14.9423618]
[1643364134557,2.95669142,89.627,89.53,14.9423618]
[1643364134754,2.95669142,89.627,89.535,31.08060125]
[1643364135158,19.66190584,89.626,89.531,31.08060125]
[1643364135555,2.95669142,89.625,89.531,31.08060125]
[1643364136059,22.61859726,89.625,89.531,31.08060125]
[1643364136356,16.7589,89.62,89.531,31.08060125]
[1643364136758,2.95669142,89.619,89.531,31.08060125]
[1643364136958,2.95669142,89.619,89.532,0.25]
[1643364137459,2.95669142,89.619,89.531,31.08060125]
[1643364137657,2.95669142,89.619,89.53,13.41]
[1643364137658,2.95669142,89.619,89.533,31.08060125]
[1643364137958,2.95669142,89.619,89.531,31.08060125]
[1643364138557,2.95669142,89.619,89.516,1.5323618]
[1643364138757,2.95669142,89.619,89.517,0.25]
[1643364138961,2.95669142,89.619,89.517,31.33060125]
[1643364139358,114.45669142,89.619,89.518,31.08060125]
[1643364139758,2.95669142,89.618,89.519,0.25]
[1643364140160,2.95669142,89.618,89.52,31.08060125]
[1643364140361,43.47954565,89.609,89.52,31.08060125]
[1643364140762,2.95669142,89.608,89.52,31.08060125]
[1643364140963,2.95669142,89.608,89.521,0.25]
[1643364141166,19.66190584,89.607,89.521,0.25]
[1643364141466,19.66190584,89.607,89.5,13.41]
[1643364141467,39.23108754,89.607,89.522,31.08060125]
[1643364141667,16.7627,89.6,89.512,31.08060125]
[1643364142065,22.52587312,89.599,89.512,31.08060125]
[1643364142265,55.894,89.59,89.503,31.08060125]
[1643364142669,55.894,89.59,89.494,32.61296305]
[1643364142866,2.95669142,89.589,89.494,31.08060125]
[1643364143066,2.95669142,89.589,89.495,31.08060125]
[1643364143266,37.09558621,89.588,89.495,31.08060125]
[1643364143467,16.7682,89.58,89.494,31.08060125]
[1643364143867,16.7682,89.58,89.492,31.08060125]
[1643364144167,2.95669142,89.579,89.488,31.08060125]
[1643364144365,114.45669142,89.579,89.488,31.08060125]
[1643364144771,38.44310126,89.559,89.484,1.5323618]
[1643364145166,38.44310126,89.559,89.485,31.33060125]
[1643364145367,38.44310126,89.559,89.486,0.25]
[1643364145568,38.44310126,89.559,89.486,31.33060125]
[1643364145867,38.44310126,89.559,89.486,31.08060125]
[1643364146072,2.95669142,89.558,89.487,31.08060125]
[1643364146472,38.44310126,89.559,89.478,31.72289834]
[1643364146672,38.44310126,89.559,89.484,1.5323618]
[1643364146873,38.44310126,89.559,89.485,0.25]
[1643364147073,38.44310126,89.559,89.488,1.5323618]
[1643364147374,38.44310126,89.559,89.489,0.25]
[1643364147576,38.44310126,89.559,89.49,1.5323618]
[1643364147777,38.44310126,89.559,89.491,0.25]
[1643364147975,38.44310126,89.559,89.491,31.34249222]
[1643364148175,2.95669142,89.558,89.491,31.09249222]
[1643364148378,2.95669142,89.558,89.475,1.5323618]
[1643364148575,2.95669142,89.558,89.45,58.69088163]
[1643364148576,2.95669142,89.558,89.464,1.5323618]
[1643364148777,39.23108754,89.557,89.476,31.10004494]
[1643364149175,2.95669142,89.556,89.476,31.10004494]
[1643364149377,16.7719,89.55,89.474,1.5323618]
[1643364149576,16.7719,89.55,89.47,31.35004494]
[1643364149776,2.95669142,89.549,89.475,31.10004494]
[1643364150179,2.95669142,89.549,89.471,31.10004494]
[1643364150578,114.45669142,89.549,89.471,31.10004494]
[1643364150777,2.95669142,89.549,89.471,31.10004494]
[1643364150979,16.7742,89.54,89.462,31.10004494]
[1643364151178,36.51217589,89.539,89.462,31.10004494]
[1643364151376,39.46886731,89.539,89.461,31.10004494]
[1643364151678,75.0,89.537,89.448,1.5323618]
[1643364151877,111.5,89.529,89.425,55.61650916]
[1643364152075,16.7766,89.52,89.415,1.5323618]
[1643364152276,30.01916154,89.519,89.413,1.5323618]
[1643364152477,111.5,89.518,89.415,1.5323618]
[1643364152680,32.97585296,89.519,89.416,14.69759923]
[1643364152976,30.01916154,89.519,89.42,1.5323618]
[1643364153178,30.01916154,89.519,89.425,1.5323618]
[1643364153378,30.01916154,89.519,89.426,0.25]
[1643364153598,16.7796,89.51,89.428,1.5323618]
[1643364153796,16.7796,89.51,89.429,0.25]
[1643364153997,16.7796,89.51,89.426,0.25]
[1643364154197,16.7796,89.51,89.422,1.5323618]
[1643364154397,16.7796,89.51,89.419,1.5323618]
[1643364154398,2.95669142,89.509,89.419,1.5323618]
[1643364154698,2.95669142,89.509,89.406,1.5323618]
[1643364154896,2.95669142,89.509,89.399,24.7975618]
[1643364154897,16.7832,89.49,89.399,24.7975618]
[1643364155100,16.7832,89.49,89.399,23.2652]
[1643364155298,36.51217589,89.489,89.402,47.66390304]
[1643364155699,36.51217589,89.489,89.403,0.25]
[1643364156501,36.51217589,89.489,89.402,47.66390304]
[1643364156700,2.95669142,89.488,89.402,47.66390304]
[1643364156900,16.7858,89.48,89.38,17.6323618]
[1643364157103,16.7858,89.48,89.375,24.1710618]
[1643364157300,114.45669142,89.479,89.375,24.1710618]
[1643364157502,114.45669142,89.479,89.375,22.6387]
[1643364157701,36.51217589,89.489,89.375,22.6387]
[1643364157903,36.51217589,89.489,89.376,45.61250047]
[1643364158301,16.7843,89.48,89.376,45.61250047]
[1643364158500,16.7843,89.48,89.376,69.77050047]
[1643364159104,36.51217589,89.489,89.376,69.77050047]
[1643364159302,36.51217589,89.489,89.377,2.0134965]
[1643364159502,36.51217589,89.489,89.391,7.2861621]
[1643364159901,36.51217589,89.489,89.392,0.25]
[1643364160705,16.7852,89.48,89.392,0.25]
[1643364161205,36.51217589,89.489,89.392,0.25]
[1643364162405,36.51217589,89.489,89.391,7.2861621]
[1643364162605,2.95669142,89.488,89.391,7.2861621]
[1643364162805,2.95669142,89.488,89.376,24.158]
[1643364163807,2.95669142,89.488,89.377,0.25]
[1643364164006,14.79669142,89.488,89.377,0.25]
[1643364164207,19.66190584,89.487,89.377,0.25]
[1643364164407,16.7867,89.48,89.377,0.25]
[1643364164607,111.5,89.479,89.377,0.25]
[1643364165011,114.45669142,89.479,89.377,0.25]
[1643364165209,2.95669142,89.478,89.377,0.25]
[1643364165512,30.01916154,89.459,89.377,0.25]
[1643364165808,2.95669142,89.458,89.361,0.25]
[1643364166810,2.95669142,89.458,89.361,45.17738893]
[1643364167016,30.01916154,89.459,89.361,45.17738893]
[1643364167210,30.01916154,89.459,89.362,111.5]
[1643364167407,30.01916154,89.459,89.363,0.25]
[1643364167611,30.01916154,89.459,89.361,45.17738893]
[1643364167810,2.95669142,89.458,89.361,68.04808893]
[1643364168009,30.01916154,89.459,89.361,68.04808893]
[1643364168613,2.95669142,89.458,89.361,68.04808893]
[1643364170422,16.7922,89.45,89.361,22.8707]
[1643364170624,111.5,89.449,89.33,16.1]
[1643364170840,114.45669142,89.449,89.325,24.4133]
[1643364171064,111.5,89.449,89.325,24.4133]
[1643364171288,22.52587312,89.448,89.325,24.4133]
[1643364171538,16.7958,89.43,89.325,24.4133]
[1643364171722,32.8958,89.43,89.311,1.5323618]
[1643364171917,19.5691817,89.429,89.303,1.5323618]
[1643364172124,180.42917312,89.429,89.297,49.3976618]
[1643364172330,15.33612726,89.428,89.297,49.3976618]
[1643364172519,91.87383513,89.428,89.297,49.3976618]
[1643364172729,55.36165924,89.427,89.297,49.3976618]
[1643364172940,111.5,89.426,89.297,47.8653]
[1643364173157,166.86165924,89.426,89.298,0.25]
[1643364173351,16.8031,89.42,89.298,0.25]
[1643364173558,16.1,89.41,89.297,47.8653]
[1643364173745,30.01916154,89.409,89.297,47.8653]
[1643364174347,30.01916154,89.409,89.3,16.1]
[1643364174544,30.01916154,89.409,89.31,6.0]
[1643364174746,30.01916154,89.409,89.311,15.87448878]
[1643364192751,30.01916154,89.409,89.408,3.3838337]
[1643364193040,30.01916154,89.409,89.408,14.38219542]
[1643364310417,30.01916154,89.409,75.204,39.06003438]
[1643364437068,30.01916154,89.409,89.394,0.25]
[1643364437269,30.01916154,89.409,89.405,22.571]
[1643364443086,30.01916154,89.409,89.348,1.53120849]
[1643364443284,30.01916154,89.409,89.301,4.60050203]
[1643364443285,30.01916154,89.409,89.391,48.0991]
[1643364443985,30.01916154,89.409,89.405,44.41696428]
[1643364444594,30.01916154,89.409,89.406,23.6904]
[1643364445394,30.01916154,89.409,89.407,111.5]
[1643364445795,30.01916154,89.409,89.408,0.25]
[1643364449804,30.01916154,89.409,89.381,45.3398]
[1643364451103,30.01916154,89.409,89.381,45.3398]
[1643364452410,30.01916154,89.409,89.329,23.0685]
[1643364452606,30.01916154,89.409,89.33,47.7907]
[1643364453206,30.01916154,89.409,89.291,49.1638]
[1643364453407,30.01916154,89.409,89.292,10.75124]
[1643364453607,376.95577601,89.369,89.293,10.75112]
[1643364453805,376.95577601,89.369,89.291,49.1638]
[1643364453806,16.05,89.4,89.291,49.1638]
[1643364454005,2.95669142,89.378,89.292,44.58418568]
[1643364454210,2.95669142,89.378,89.291,49.1638]
[1643364454410,111.5,89.398,89.291,49.1638]
[1643364454712,16.05,89.39,89.233,23.8574]
[1643364454913,0.32060833,89.372,89.234,70.4083]
[1643364455112,16.05,89.36,89.234,117.44819671]
[1643364455309,2.3926447,89.359,89.234,70.4083]
[1643364455711,2.95669142,89.358,89.234,70.4083]
[1643364456311,2.3926447,89.359,89.236,35.46450043]
[1643364456512,2.3926447,89.359,89.246,6.0]
[1643364456913,2.3926447,89.359,89.247,0.25]
[1643364458716,16.05,89.36,89.247,0.25]
[1643364458717,16.05,89.36,89.271,2.01134764]
[1643364458918,2.95669142,89.393,89.272,0.25]
[1643364459120,13.45,89.39,89.281,6.0]
[1643364459319,13.45,89.39,89.282,0.25]
[1643364459520,13.45,89.39,89.272,0.25]
[1643364459719,7.61006238,89.389,89.274,0.25]
[1643364460121,10.5667538,89.389,89.283,6.0]
[1643364460320,7.61006238,89.389,89.284,0.25]
[1643364460922,2.95669142,89.388,89.273,40.76466142]
[1643364461120,41.78831374,89.388,89.284,0.25]
[1643364461320,41.78831374,89.388,89.234,46.8922]
[1643364461321,38.83162232,89.387,89.24,13.45]
[1643364461523,41.78831374,89.387,89.234,46.8922]
[1643364461722,52.33371121,89.386,89.234,46.8922]
[1643364462121,52.33371121,89.385,89.234,46.8922]
[1643364462322,52.33371121,89.385,89.235,37.81009404]
[1643364462520,111.5,89.383,89.235,37.81009404]
[1643364462723,13.45,89.37,89.236,0.25]
[1643364462922,1.03548716,89.369,89.236,0.25]
[1643364463120,53.36919837,89.369,89.236,0.25]
[1643364463522,23.42611392,89.368,89.236,0.25]
[1643364463922,23.42611392,89.368,89.236,2.26134764]
[1643364464122,2.95669142,89.368,89.236,113.76134764]
[1643364464525,2.95669142,89.368,89.246,6.0]
[1643364464824,2.95669142,89.368,89.247,0.25]
[1643364465124,20.4694225,89.367,89.247,0.25]
[1643364465325,38.83162232,89.367,89.247,0.25]
[1643364465524,21.31889124,89.366,89.247,0.25]
[1643364465725,41.78831374,89.366,89.247,0.25]
[1643364465925,21.31889124,89.365,89.247,0.25]
[1643364466126,13.45,89.36,89.236,0.25]
[1643364466733,2.95669142,89.359,89.236,0.25]
[1643364466932,2.95669142,89.359,89.245,6.0]
[1643364467133,2.95669142,89.359,89.271,2.01134764]
[1643364467333,2.95669142,89.359,89.272,0.25]
[1643364467533,2.95669142,89.359,89.272,43.74096414]
[1643364467935,20.4694225,89.358,89.199,1.53120849]
[1643364468132,20.4694225,89.358,89.261,0.25]
[1643364468333,20.4694225,89.358,89.193,1.53120849]
[1643364468334,114.45669142,89.357,89.234,23.815]
[1643364468535,0.31118885,89.333,89.234,23.815]
[1643364468734,13.45,89.32,89.234,23.815]
[1643364468934,6.27000155,89.319,89.235,42.378383]
[1643364469533,9.22669297,89.319,89.235,42.378383]
[1643364469933,6.27000155,89.319,89.235,42.378383]
[1643364470565,6.27000155,89.319,89.236,0.25]
[1643364470763,2.95669142,89.349,89.236,0.25]
[1643364470960,13.45,89.35,89.236,0.25]
[1643364471670,13.45,89.35,89.235,42.378383]
[1643364471671,31.84411711,89.349,89.235,42.378383]
[1643364472062,35.51683302,89.348,89.235,42.378383]
[1643364472461,53.69342173,89.347,89.234,23.815]
[1643364472961,53.69342173,89.346,89.234,23.815]
[1643364473163,0.32038225,89.345,89.234,23.815]
[1643364473363,13.45,89.33,89.202,23.6346]
[1643364473861,32.5601416,89.329,89.202,23.6346]
[1643364474064,35.51683302,89.329,89.202,23.6346]
[1643364474264,0.30094847,89.321,89.202,23.6346]
[1643364474463,111.5,89.309,89.202,23.6346]
[1643364474663,13.45,89.31,89.202,23.6346]
[1643364474863,15.04741052,89.308,89.202,23.6346]
[1643364475265,13.45,89.31,89.202,23.6346]
[1643364475865,2.95669142,89.309,89.203,0.25]
[1643364476269,13.45,89.31,89.203,0.25]
[1643364476665,2.95669142,89.309,89.203,0.25]
[1643364476865,2.95669142,89.309,89.202,23.6346]
[1643364477265,13.45,89.31,89.203,0.25]
[1643364477665,2.95669142,89.309,89.203,0.25]
[1643364478667,13.45,89.31,89.203,0.25]
[1643364479067,13.45,89.31,89.202,23.6346]
[1643364479369,15.04741052,89.309,89.202,23.6346]
[1643364479866,15.04741052,89.309,89.199,43.96500002]
[1643364479867,2.95669142,89.266,89.176,1.53120849]
[1643364480268,13.45,89.27,89.162,50.08010849]
[1643364480468,13.45,89.27,89.162,48.5489]
[1643364480669,2.95669142,89.269,89.162,48.5489]
[1643364480871,2.95669142,89.269,89.173,36.71431793]
[1643364481070,12.0907191,89.275,89.173,36.71431793]
[1643364481467,2.95669142,89.269,89.173,36.71431793]
[1643364481869,2.95669142,89.269,89.174,1.53120849]
[1643364482067,12.0907191,89.275,89.175,1.53120849]
[1643364482568,2.95669142,89.274,89.175,1.53120849]
[1643364482967,2.95669142,89.274,89.174,1.53120849]
[1643364483168,22.9539,89.306,89.189,47.00702287]
[1643364483372,13.45,89.32,89.19,1.53120849]
[1643364483569,13.45,89.32,89.194,1.53120849]
[1643364483769,13.45,89.32,89.197,1.53120849]
[1643364483970,2.95669142,89.319,89.198,1.53120849]
[1643364484172,2.95669142,89.319,89.202,1.53120849]
[1643364484369,2.95669142,89.319,89.195,0.25]
[1643364484370,22.77021337,89.319,89.203,49.27078227]
[1643364484772,2.95669142,89.318,89.203,49.27078227]
[1643364484970,2.95669142,89.318,89.204,0.25]
[1643364485471,2.95669142,89.318,89.207,1.53120849]
[1643364485672,2.95669142,89.318,89.21,1.53120849]
[1643364485878,2.95669142,89.318,89.207,1.53120849]
[1643364486074,14.01669142,89.318,89.207,1.53120849]
[1643364486277,14.01669142,89.318,89.208,0.25]
[1643364486573,2.95669142,89.317,89.208,1.53120849]
[1643364486771,19.81352195,89.341,89.216,1.53120849]
[1643364486772,13.45,89.34,89.216,1.53120849]
[1643364486971,13.45,89.34,89.209,0.25]
[1643364486972,13.45,89.34,89.219,1.53120849]
[1643364487173,2.95669142,89.319,89.216,1.53120849]
[1643364487372,13.45,89.31,89.204,24.251]
[1643364487771,2.95669142,89.309,89.204,24.251]
[1643364487973,2.95669142,89.309,89.205,43.31014602]
[1643364488376,2.95669142,89.309,89.206,0.25]
[1643364489776,2.95669142,89.326,89.206,0.25]
[1643364489976,13.45,89.35,89.21,13.45]
[1643364490175,13.45,89.35,89.211,24.5024]
[1643364490376,13.45,89.35,89.211,24.7524]
[1643364490575,111.5,89.348,89.212,111.5]
[1643364490777,160.57950909,89.348,89.213,0.25]
[1643364490981,12.72349393,89.347,89.213,0.25]
[1643364491176,52.58565224,89.347,89.213,0.25]
[1643364491377,1.50028468,89.344,89.213,0.25]
[1643364491576,13.45,89.33,89.213,0.25]
[1643364491775,47.9644,89.347,89.213,0.25]
[1643364491776,13.45,89.32,89.213,0.25]
[1643364491978,1.50028468,89.34,89.203,1.53120849]
[1643364491979,13.45,89.31,89.203,1.53120849]
[1643364492178,13.45,89.3,89.199,1.53120849]
[1643364492477,111.5,89.299,89.198,1.53120849]
[1643364492678,2.95669142,89.299,89.198,1.53120849]
[1643364492881,13.45,89.3,89.203,1.53120849]
[1643364493285,13.45,89.3,89.206,1.78120849]
[1643364493482,13.45,89.32,89.208,1.53120849]
[1643364493679,13.45,89.32,89.206,0.25]
[1643364493881,13.45,89.32,89.211,1.53120849]
[1643364494080,13.45,89.32,89.206,0.25]
[1643364494282,2.95669142,89.319,89.208,1.53120849]
[1643364494480,114.45669142,89.319,89.21,1.53120849]
[1643364494680,134.27021337,89.319,89.209,1.53120849]
[1643364494880,2.95669142,89.318,89.21,0.25]
[1643364495081,14.17990067,89.318,89.206,26.13550849]
[1643364495482,2.95669142,89.317,89.206,26.13550849]
[1643364495684,2.95669142,89.317,89.211,1.53120849]
[1643364495883,2.95669142,89.317,89.212,0.25]
[1643364496088,2.95669142,89.335,89.217,1.53120849]
[1643364496283,36.90546689,89.338,89.224,1.53120849]
[1643364496284,2.95669142,89.317,89.224,1.53120849]
[1643364496485,2.95669142,89.317,89.225,41.66678023]
[1643364496684,19.81352195,89.335,89.225,41.66678023]
[1643364496884,13.45,89.33,89.225,41.66678023]
[1643364497086,13.45,89.33,89.216,1.53120849]
[1643364497291,51.08536756,89.329,89.216,1.53120849]
[1643364497685,111.5,89.327,89.213,1.53120849]
[1643364497885,0.32074905,89.317,89.213,1.53120849]
[1643364498087,13.45,89.31,89.197,1.53120849]
[1643364498289,13.45,89.31,89.196,1.53120849]
[1643364498486,13.45,89.31,89.194,1.53120849]
[1643364498691,52.31821624,89.309,89.195,1.53120849]
[1643364499089,52.31821624,89.308,89.189,1.53120849]
[1643364499289,111.5,89.307,89.19,38.44744797]
[1643364499489,163.81821624,89.307,89.19,1.53120849]
[1643364499693,49.36152482,89.306,89.185,1.53120849]
[1643364499892,52.31821624,89.306,89.185,1.53120849]
[1643364500092,52.31821624,89.305,89.185,1.53120849]
[1643364500298,52.31821624,89.305,89.184,1.53120849]
[1643364500498,113.00028468,89.307,89.193,1.53120849]
[1643364500499,52.31821624,89.304,89.193,1.53120849]
[1643364500697,13.45,89.29,89.204,1.53120849]
[1643364500901,43.3822,89.29,89.193,1.53120849]
[1643364501100,41.09500699,89.289,89.193,1.53120849]
[1643364501302,41.09500699,89.289,89.176,49.11]
[1643364501303,52.31821624,89.289,89.189,1.53120849]
[1643364501601,33.99342262,89.288,89.18,1.53120849]
[1643364501799,33.99342262,89.288,89.181,40.19307292]
[1643364502102,33.99342262,89.287,89.181,40.19307292]
[1643364502299,33.99342262,89.287,89.18,1.53120849]
[1643364502600,33.99342262,89.287,89.153,1.53120849]
[1643364502601,0.31066251,89.243,89.153,1.53120849]
[1643364502801,0.31066251,89.243,89.135,1.53120849]
[1643364502999,0.31066251,89.243,89.128,0.04434357]
[1643364503000,0.31066251,89.243,89.137,1.53120849]
[1643364503399,2.95669142,89.242,89.139,1.53120849]
[1643364503600,2.95669142,89.242,89.134,1.53120849]
[1643364503804,0.30021075,89.22,89.134,1.53120849]
[1643364504002,0.30021075,89.22,89.128,0.04434357]
[1643364504223,0.30400014,89.198,89.128,0.04434357]
[1643364504418,0.30400014,89.198,89.128,0.00434357]
[1643364504419,0.30520202,89.186,89.128,0.00434357]
[1643364504619,0.31438556,89.146,89.128,0.00434357]
[1643364504927,376.99565643,89.123,89.041,0.1]
[1643364505217,376.99565643,89.123,89.018,3.06700135]
[1643364505218,13.45,89.14,89.018,0.1]
[1643364505419,13.45,89.13,89.0,2.56312]
[1643364505622,2.95669142,89.122,89.001,36.94880945]
[1643364505819,13.45,89.13,89.001,36.94880945]
[1643364506019,13.45,89.13,89.002,0.1]
[1643364506323,51.28722195,89.16,89.002,18.24547261]
[1643364506519,51.28722195,89.16,89.003,18.67880595]
[1643364506719,2.95669142,89.159,89.004,0.1]
[1643364506920,2.95669142,89.159,89.004,18.67880595]
[1643364507119,30.3037,89.16,89.005,2.19442716]
[1643364507321,30.3037,89.16,89.005,32.49004467]
[1643364507520,30.3037,89.16,89.015,6.0]
[1643364507722,2.95669142,89.159,89.016,42.06420814]
[1643364507922,23.94021337,89.159,89.017,0.1]
[1643364508129,30.92149228,89.158,89.017,0.1]
[1643364508322,33.8781837,89.158,89.017,0.1]
[1643364508522,31.86038117,89.157,89.017,0.1]
[1643364508724,52.5322116,89.157,89.017,0.1]
[1643364508924,34.81707259,89.156,89.017,0.1]
[1643364509321,24.87910226,89.155,89.017,0.1]
[1643364509522,52.51632271,89.155,89.017,0.1]
[1643364509822,168.17,89.15,89.017,0.1]
[1643364510022,13.45,89.14,89.017,0.1]
[1643364510225,168.17,89.12,88.965,0.1]
[1643364510424,0.31874309,89.094,88.963,0.1]
[1643364510623,0.30204703,89.121,88.963,0.1]
[1643364510624,0.31416683,89.076,88.963,0.1]
[1643364510825,0.31003736,89.05,88.905,3.06700135]
[1643364511023,0.31003736,89.05,88.903,44.33995946]
[1643364511024,13.45,89.04,88.903,44.33995946]
[1643364511223,1.42927017,89.039,88.904,0.1]
[1643364511421,26.30837243,89.039,88.904,0.1]
[1643364511630,11.94677405,89.038,88.904,0.1]
[1643364511827,11.94677405,89.038,88.784,23.30364001]
[1643364511828,168.17,89.02,88.897,0.1]
[1643364512027,13.45,89.01,88.823,29.37657422]
[1643364512231,13.45,89.01,88.825,10.80776]
[1643364512429,13.45,89.01,88.853,15.31348511]
[1643364512634,5.69841241,89.009,88.855,10.80411]
[1643364512830,5.69841241,89.009,88.857,10.80387]
[1643364513034,5.69841241,89.009,88.858,0.1]
[1643364513035,8.65510383,89.009,88.858,0.1]
[1643364513236,0.30940669,88.965,88.759,3.06700135]
[1643364513436,0.30940669,88.965,88.734,4.60050203]
[1643364513437,0.0444633,88.884,88.734,4.60050203]
[1643364513632,0.0444633,88.884,88.714,11.75647109]
[1643364513633,1.00455977,88.808,88.714,11.75647109]
[1643364513832,1.00455977,88.808,88.652,22.9246]
[1643364513833,13.45,88.8,88.684,3.924202]
[1643364514033,13.45,88.79,88.73,101.6287]
[1643364514241,292.8913,88.714,88.684,3.924202]
[1643364514442,168.17,88.77,88.684,3.924202]
[1643364514648,13.45,88.72,88.684,3.924202]
[1643364514837,16.40669142,88.73,88.684,2e-06]
[1643364515040,2.95669142,88.675,88.611,9.83844317]
[1643364515440,0.30503341,88.686,88.649,3.924202]
[1643364515441,24.22654803,88.674,88.649,3.924202]
[1643364515639,373.075798,88.635,88.611,9.83844317]
[1643364515939,13.45,88.65,88.47,17.374202]
[1643364516140,13.45,88.64,88.47,17.374202]
[1643364516339,13.45,88.63,88.523,10.84463]
[1643364516542,13.45,88.63,88.47,17.374202]
[1643364516543,0.3122144,88.586,88.47,3.924202]
[1643364516742,13.45,88.58,88.47,3.924202]
[1643364516938,13.45,88.58,88.41,5.24070369]
[1643364516939,13.45,88.58,88.41,2.498582]
[1643364517139,13.45,88.58,88.412,10.85825]
[1643364517140,0.31269099,88.574,88.412,10.85825]
[1643364517340,13.45,88.56,88.412,5.85825]
[1643364517544,168.17,88.55,88.41,2.498582]
[1643364517739,13.45,88.54,88.41,2.498582]
[1643364517941,168.17,88.53,88.41,2.498582]
[1643364518141,168.17,88.49,88.41,2.498582]
[1643364518343,13.45,88.48,88.367,0.1]
[1643364518541,13.45,88.48,88.286,0.30991061]
[1643364518746,13.45,88.48,88.325,0.32219633]
[1643364518942,0.31412148,88.6,88.327,10.8687]
[1643364519243,11.23706177,88.598,88.358,0.30145045]
[1643364519441,11.23706177,88.598,88.375,0.31327245]
[1643364519641,2.95669142,88.597,88.394,0.3218259]
[1643364519841,2.95669142,88.597,88.413,0.31241668]
[1643364520443,13.45,88.6,88.413,0.31241668]
[1643364520444,13.45,88.6,88.439,0.30130295]
[1643364520643,2.95669142,88.611,88.439,0.30130295]
[1643364520843,2.95669142,88.611,88.44,18.57788142]
[1643364521045,2.95669142,88.599,88.45,6.0]
[1643364521244,2.95669142,88.599,88.442,0.1]
[1643364521643,49.73030038,88.598,88.442,0.35]
[1643364521848,49.73030038,88.598,88.442,0.1]
[1643364521849,10.72647,88.596,88.442,0.1]
[1643364522044,13.45,88.59,88.442,0.1]
[1643364522245,10.72647,88.576,88.442,0.1]
[1643364522445,13.45,88.57,88.442,0.1]
[1643364522645,10.72647,88.568,88.442,0.1]
[1643364523073,10.72647,88.568,88.443,2.41656738]
[1643364523269,10.72647,88.568,88.443,2.11343523]
[1643364523469,2.95669142,88.567,88.444,0.25]
[1643364523672,10.72647,88.555,88.451,6.0]